Cogmind - Beta 10.2 @@@ ROGUE MODE // 2020.11.07 @ 20:24:40 // Halloween2020/ForbiddenLore Player: Sandwich Result: Destroyed by G-73 Enforcer with Heavy Laser Performance ------------- Evolutions (8) 4000 Regions Visited (13) 2600 Robots Destroyed (220) 1100 Value Destroyed (12497) 12497 Prototype IDs (49) 980 Alien Tech Used (0) 0 Bonus (8779) 8779 TOTAL SCORE: 29956 Bonus ------- Triggered High Security 500 High Alert Combat Kills 6273 Follower Combat Kills 1275 Aligned with FarCom 300 Scanned by Researcher 500 Friendly Fire -69 Cogmind --------- Core Integrity 0/1450 Matter 300/300 Energy 45/100 System Corruption 34% Temperature Cool (8) Movement Core (50) Location -2/Research Parts ------- > --- POWER (2) -------- (None) > --- PROPULSION (4) --- (None) > --- UTILITY (13) ----- Advanced Coolant Injector Advanced Coolant Injector Advanced Core Analyzer > --- WEAPON (4) ------- (None) > --- INVENTORY (4) ---- Advanced Matter Compressor (400) Peak State ------------ > --- POWER ------------ Graviton Reactor Improved Quantum Reactor > --- PROPULSION ------- Advanced Myomer Leg Centrium Leg Centrium Leg High-density Centrium Leg > --- UTILITY ---------- Advanced Heat Sink Advanced Coolant Injector Advanced Coolant Injector Advanced Coolant Injector Advanced Coolant Injector Large Storage Unit Large Storage Unit Advanced Matter Compressor Advanced Targeting Computer Advanced Targeting Computer Advanced Target Analyzer Advanced Core Analyzer Advanced Weapon Cycler > --- WEAPON ----------- Matter Neutralizer Improved Matter Neutralizer Improved Matter Neutralizer Improved Matter Neutralizer > --- INVENTORY -------- High-density Centrium Leg Advanced Coolant Injector Advanced Coolant Injector Advanced Coolant Injector Army-in-a-Box Enhanced Quantum Rifle Nova Cannon Firepult Neutron Missile Launcher Tactical Quantum Warhead [Rating: 174] Favorites ----------- Power Reinforced Fission Core Engine Ion Engine Power Core Reinforced Fission Core Reactor Light Antimatter Reactor Propulsion Compact Wheel Treads Medium Treads Leg Myomer Leg Wheel Compact Wheel Utility Advanced Heat Sink Device Advanced Heat Sink Storage Large Storage Unit Processor Advanced Targeting Computer Hackware Advanced Hacking Suite Protection Layered Light Armor Plating Weapon Railgun Energy Gun Medium Laser Energy Cannon Improved Matter Neutralizer Ballistic Gun Railgun Launcher Neutron Missile Launcher Special Weapon Plasma Flamer Slashing Weapon Ripper Piercing Weapon Plasma Lance Build | -11 -10 -10 -10 -9 -8 -8 -8 -6 -5 -4 -4 -3 -2 ------- Run | Scr Mat Min Exi Min Mat Sto Rec Fac Fac Fac Ext Res Res Slots Evolved 16 | . . . . . 4 . . 4 2 2 . 2 2 Power 1 | . . . . . . . . . 1 . . . . Propulsion 2 | . . . . . . . . 1 . 1 . . . Utility 11 | . . . . . 3 . . 2 1 1 . 2 2 Weapon 2 | . . . . . 1 . . 1 . . . . . Parts Attached 302 | 6 5 2 2 2 3 3 2 10 2 33 50 37 145 Power 35 | 1 . 1 . . . 1 . . 1 1 6 1 23 Engine 3 | 1 . . . . . 1 . . . . . . 1 Core 11 | . . 1 . . . . . . 1 1 5 . 3 Reactor 21 | . . . . . . . . . . . 1 1 19 Propulsion 62 | 2 1 . 2 . . . 1 1 . 15 10 10 20 Treads 16 | 1 . . 1 . . . 1 . . 2 3 8 . Leg 34 | . . . . . . . . . . 7 7 1 19 Wheel 12 | 1 1 . 1 . . . . 1 . 6 . 1 1 Hover . | . . . . . . . . . . . . . . Flight . | . . . . . . . . . . . . . . Utility 109 | 1 2 . . 1 2 2 1 6 1 10 16 15 52 Device 69 | . 1 . . . . 1 1 1 . 7 9 12 37 Storage 14 | 1 1 . . . 1 . . 2 . 2 1 1 5 Processor 12 | . . . . . . 1 . . . 1 4 2 4 Hackware 1 | . . . . . . . . . . . 1 . . Protection 13 | . . . . 1 1 . . 3 1 . 1 . 6 Artifact . | . . . . . . . . . . . . . . Weapon 96 | 2 2 1 . 1 1 . . 3 . 7 18 11 50 Energy Gun 39 | 2 2 1 . 1 . . . 1 . 2 4 6 20 Energy Cannon 19 | . . . . . . . . 2 . 3 4 . 10 Ballistic Gun 23 | . . . . . . . . . . 1 5 4 13 Ballistic Cannon . | . . . . . . . . . . . . . . Launcher 8 | . . . . . . . . . . 1 1 . 6 Special Weapon 1 | . . . . . 1 . . . . . . . . Impact Weapon . | . . . . . . . . . . . . . . Slashing Weapon 5 | . . . . . . . . . . . 4 1 . Piercing Weapon 1 | . . . . . . . . . . . . . 1 Special Melee Weapon . | . . . . . . . . . . . . . . Unidentified Prototypes 24 | . . . . . . . . . . 2 1 1 20 Parts Lost 148 | 2 1 1 . . . . . . . 25 29 17 73 Power 18 | . . . . . . . . . . 3 4 1 10 Propulsion 33 | . 1 . . . . . . . . 7 8 4 13 Utility 44 | . . . . . . . . . . 7 7 8 22 Weapon 53 | 2 . 1 . . . . . . . 8 10 4 28 Highest Loss Streak 13 | 2 1 1 . . . . . . . 13 5 4 12 Average Slot Usage (%) 86 | . 86 99 100 100 78 95 100 94 86 53 72 88 92 Engine 2 | . 14 10 . . . 8 9 6 5 1 . . . Core 3 | . . 3 14 14 9 . . . . 3 6 6 . Reactor 2 | . . . . . . . . . . . . 1 6 Treads 6 | . 14 14 14 14 9 9 9 6 5 2 3 14 1 Leg 6 | . . . . . . . . . . 6 8 . 13 Wheel 4 | . 10 14 14 14 9 9 9 9 11 6 . 1 . Device 13 | . 1 14 14 9 . 1 9 6 5 4 8 20 23 Storage 15 | . 25 14 14 14 12 18 18 25 11 13 19 17 11 Processor 6 | . . . . . . 4 . . . . 8 7 14 Protection 4 | . . . . 4 12 18 18 13 20 5 . . 2 Energy Gun 9 | . 19 27 28 28 18 18 18 13 11 3 3 3 5 Energy Cannon 1 | . . . . . . . . 5 5 2 1 . 2 Ballistic Gun 3 | . . . . . . . . . . 1 2 10 6 Special Weapon 1 | . . . . . 8 9 9 6 5 1 . . . Naked Turns . | . . . . . . . . . . . . . . Heaviest Build 154 | 13 27 26 26 33 42 47 47 80 101 109 101 96 154 Greatest Support 124 | 20 20 16 16 16 16 16 16 26 26 100 70 119 124 Greatest Overweight (x) 15 | 1 1 1 1 2 2 2 2 4 3 13 15 7 3 Average Overweight (x) 1 | . . 1 1 1 2 2 2 2 3 2 1 1 . Largest Inventory Capacity 20 | 6 12 10 10 10 10 10 10 10 10 14 14 14 20 Average Capacity 11 | 5 11 10 10 10 10 10 10 10 10 12 13 14 14 Most Carried 16 | 3 2 5 10 10 10 10 10 10 10 10 14 14 16 Average Carried 10 | 2 2 3 9 10 9 10 10 9 9 8 11 13 14 Final Capacity 14 | 6 10 10 10 10 10 10 10 10 10 14 14 14 4 Final Carried 14 | 3 2 5 10 10 10 10 10 10 9 10 13 14 1 Class Distribution -------------------- 32% | Scavenger-Gunner 25% | Mutant 22% | Scavenger-Mutant 9% | Tank 6% | Commander-Tank 3% | Commander-Mutant Dominant Class ---------------- Mutant | -10/Materials Mutant | -10/Mines Scavenger-Mutant | -10/Exiles Scavenger-Mutant | -9/Mines Skirmisher | -8/Materials Tank | -8/Storage Commander-Tank | -8/Recycling Commander-Tank | -6/Factory Tank | -5/Factory Mutant | -4/Factory Scavenger-Mutant | -4/Extension Scavenger-Gunner | -3/Research Scavenger-Gunner | -2/Research Resources | -11 -10 -10 -10 -9 -8 -8 -8 -6 -5 -4 -4 -3 -2 ----------- Run | Scr Mat Min Exi Min Mat Sto Rec Fac Fac Fac Ext Res Res Matter Collected 7357 | 250 45 20 . 40 . 171 123 330 . 339 1200 1044 3795 Remotely . | . . . . . . . . . . . . . . Salvage Created 13424 | . 221 120 . . . 39 . 242 . 672 1813 2004 8313 Parts 475 | . 11 11 . . . 4 . 10 . 18 39 86 296 Haulers Intercepted 6 | . 1 . . . . . . . . . 1 . 4 Recyclers Shooed 6 | . . . . . . . . . . 1 2 2 1 Parts Field Recycled . | . . . . . . . . . . . . . . Retrieved Matter . | . . . . . . . . . . . . . . Parts Self-Destructed . | . . . . . . . . . . . . . . Prevented . | . . . . . . . . . . . . . . Kills | -11 -10 -10 -10 -9 -8 -8 -8 -6 -5 -4 -4 -3 -2 ------- Run | Scr Mat Min Exi Min Mat Sto Rec Fac Fac Fac Ext Res Res Combat Hostiles Destroyed 176 | . 1 5 . . . 1 . 3 . 10 24 27 105 Melee 5 | . . . . . . . . . . . . 4 1 Guns 101 | . 1 5 . . . . . 1 . 5 9 21 59 Cannons 23 | . . . . . . 1 . 2 . . 2 . 18 AOE 30 | . . . . . . . . . . 5 11 2 12 Classes Destroyed 22 | . 3 1 . . . 1 . 2 . 3 4 . 8 Worker 9 | . . . . . . . . 1 . 1 4 . 3 Builder 3 | . . . . . . . . . . . . . 3 Tunneler 1 | . . . . . . . . . . . 1 . . Hauler 6 | . 1 . . . . . . . . . 1 . 4 Recycler 14 | . 2 . . . . . . . . 2 6 2 2 Carrier 2 | . . . . . . . . . . . . . 2 Mechanic 2 | . . . . . . . . . . . . . 2 Operator 2 | . . . . . . . . . . 1 . . 1 Watcher 4 | . . . . . . . . 1 . . 1 1 1 Swarmer 26 | . . 3 . . . . . . . 4 9 5 5 Saboteur 3 | . . . . . . . . . . . . . 3 Grunt 64 | . 1 2 . . . . . 1 . 2 5 14 39 Brawler 7 | . . . . . . . . . . . 1 2 4 Duelist 11 | . . . . . . . . . . . 1 . 10 Protector 3 | . . . . . . . . . . . . . 3 Sentry 11 | . . . . . . 1 . 1 . . 3 2 4 Hunter 18 | . . . . . . . . . . 2 2 . 14 Programmer 26 | . . . . . . . . . . 2 . 4 20 Behemoth 2 | . . . . . . . . . . . 2 . . Investigator 1 | . . . . . . . . . . . . . 1 Striker 2 | . . . . . . . . . . . . . 2 Executioner 1 | . . . . . . . . . . . . . 1 Thug 1 | . . . . . . . . 1 . . . . . Savage 1 | . . . . . . . . . . . 1 . . Best Kill Streak 16 | . 4 3 . . . 1 . 1 . 5 8 11 16 Combat Bots Only 15 | . 1 3 . . . 1 . 1 . 4 5 6 15 Max Kills in Single Turn 4 | . 1 2 . . . 1 . 1 . 4 3 2 4 Gunslinging 1 | . . 1 . . . . . . . . . 1 . Exploded 4 | . . . . . . . . . . 4 2 1 3 Melee 1 | . . . . . . . . . . . . 1 1 Uniques/NPCs Destroyed . | . . . . . . . . . . . . . . Combat | -11 -10 -10 -10 -9 -8 -8 -8 -6 -5 -4 -4 -3 -2 -------- Run | Scr Mat Min Exi Min Mat Sto Rec Fac Fac Fac Ext Res Res Damage Taken 24615 | 402 45 54 . 36 . 85 18 98 41 4309 3765 2976 12786 Core 2970 | 110 10 . . 13 . . . . 20 454 501 404 1458 Absorbed by Shields 1842 | . . . . . . . . . . . 153 336 1353 Reduced by Siege Mode 187 | . . . . . . . . . . . 187 . . Core Remaining (%) 69 | 56 . . . 46 . . 100 100 98 . 16 68 . Volleys Fired 535 | 1 10 7 . . . 4 1 10 . 86 137 62 217 Largest 4 | 1 2 2 . . . 3 3 4 . 3 4 4 4 Hottest 444 | 50 80 105 . . . 240 240 340 . 255 254 258 444 Shots Fired 1297 | 1 16 13 . . . 8 3 33 . 92 238 190 703 Gun 1054 | 1 16 13 . . . 5 2 18 . 82 145 187 585 Cannon 206 | . . . . . . . . 8 . 8 80 . 110 Launcher 26 | . . . . . . . . . . 2 13 3 8 Special 11 | . . . . . . 3 1 7 . . . . . Kinetic 614 | . . . . . . . . . . 55 79 129 351 Thermal 575 | 1 16 13 . . . 8 3 33 . 32 132 58 279 Explosive 26 | . . . . . . . . . . 2 13 3 8 Electromagnetic 82 | . . . . . . . . . . 3 14 . 65 Robot Hit Streak 52 | . 12 15 . . . 7 1 10 . 12 52 24 25 Robot Miss Streak 5 | 1 1 1 . . . . 2 4 . 3 4 2 5 Penetration Max 2 | . . . . . . . . . . 1 1 1 2 Secondary Targets 18 | . . 1 . . . . . . . . . 7 10 Max Gunslinging Chain 1 | . . 1 . . . . . . . . . 1 1 Shots Hit Robots 936 | . 14 9 . . . 6 1 16 . 63 170 167 490 Core Hits 574 | . 9 7 . . . 2 1 10 . 28 89 86 342 Critical Hits 65 | . . . . . . . . . . 1 5 1 58 Critical Kills 28 | . . . . . . . . . . . 1 . 27 Critical Parts Destroyed 31 | . . . . . . . . . . 1 2 . 28 Melee Attacks 36 | . . . . . . . . . . . 13 23 . Impact . | . . . . . . . . . . . . . . Slashing 36 | . . . . . . . . . . . 13 23 . Piercing . | . . . . . . . . . . . . . . Sneak Attacks 1 | . . . . . . . . . . . 1 . . Combat Hostiles . | . . . . . . . . . . . . . . Follow-up Attacks 2 | . . . . . . . . . . . 2 . . Damage Inflicted 37142 | 13 153 106 . . . 100 14 399 . 2648 7623 5028 21058 Guns 21055 | 13 153 106 . . . 74 . 264 . 1463 2264 3706 13012 Cannons 4779 | . . . . . . . . 107 . 143 1585 . 2944 Explosions 10136 | . . . . . . . . . . 1042 3416 576 5102 Melee 1104 | . . . . . . . . . . . 358 746 . Ramming . | . . . . . . . . . . . . . . Kinetic 12070 | . . . . . . . . . . 943 1004 2428 7695 Thermal 14602 | 13 153 106 . . . 100 14 399 . 1053 2879 1278 8607 Explosive 7879 | . . . . . . . . . . 598 3117 576 3588 Electromagnetic 1487 | . . . . . . . . . . 54 265 . 1168 Impact . | . . . . . . . . . . . . . . Slashing 1104 | . . . . . . . . . . . 358 746 . Piercing . | . . . . . . . . . . . . . . Highest Corruption 34 | . 2 2 2 2 . . . . . 7 7 12 34 Average Corruption 7 | . 2 2 2 2 . . . . . 4 6 4 13 Corruption Purged 1 | . . . . . . . . . . . 1 . . Effects 356 | . 2 5 3 3 . . . . . 19 70 18 236 Message Errors 53 | . 1 3 2 1 . . . . . 4 10 3 29 Matter Fused 43 | . . . . . . . . . . 4 13 2 24 Heat Flow Errors 26 | . . 1 1 1 . . . . . 3 8 . 12 Energy Discharges 29 | . . . . 1 . . . . . 3 7 2 16 Parts Rejected 6 | . . . . . . . . . . . 2 2 2 Data Loss (minor) 30 | . 1 1 . . . . . . . 4 7 4 13 Data Loss (major) 6 | . . . . . . . . . . . 1 . 5 Misfires 7 | . . . . . . . . . . . 3 1 3 Alerts 4 | . . . . . . . . . . . . 1 3 Misdirections 15 | . . . . . . . . . . . . . 15 Targeting Errors 110 | . . . . . . . . . . 1 19 3 87 Weapon Failures 27 | . . . . . . . . . . . . . 27 Overload Shots 1 | . . . . . . . . . . . 1 . . Overflow Damage 860 | . . . . . . . . . . 284 234 79 263 Projectiles 147 | . . . . . . . . . . . 94 . 53 Explosions 656 | . . . . . . . . . . 284 83 79 210 Melee 57 | . . . . . . . . . . . 57 . . Knockbacks . | . . . . . . . . . . . . . . Impact . | . . . . . . . . . . . . . . Kinetic . | . . . . . . . . . . . . . . Secondary . | . . . . . . . . . . . . . . Self-Inflicted Damage 544 | . . . . . . . . . . . 175 . 369 Shots 23 | . . . . . . . . . . . 4 . 19 Rammed . | . . . . . . . . . . . . . . Targets Rammed . | . . . . . . . . . . . . . . Kicked . | . . . . . . . . . . . . . . Crushed . | . . . . . . . . . . . . . . Highest Temperature 400 | 10 54 127 204 154 . 384 153 346 . 363 327 27 400 Average Temperature 108 | 7 20 30 106 82 . 159 79 126 . 170 90 12 106 Received Heat Transfer 2345 | 100 24 24 . . . 27 9 45 9 354 318 434 1001 Effects 13 | . . . . . . 4 . 3 . 3 3 . . Shutdowns 2 | . . . . . . . . 1 . 1 . . . Energy Bleed 2 | . . . . . . . . . . 1 1 . . Interference 8 | . . . . . . 3 . 2 . 1 2 . . Matter Decay 1 | . . . . . . 1 . . . . . . . Siege Activations 1 | . . . . . . . . . . . 1 . . Total Turns 36 | . . . . . . . . . . . 36 . . Longest Duration 36 | . . . . . . . . . . . 36 . . Robots Corrupted 2 | . . . . . . . . . . . . . 2 Combat Hostiles 2 | . . . . . . . . . . . . . 2 Parts Fried 6 | . . . . . . . . . . . . . 6 Impact Corruptions . | . . . . . . . . . . . . . . Robots Melted 17 | . . . . . . . . . . . 3 . 14 Combat Hostiles 14 | . . . . . . . . . . . 1 . 13 Parts Melted 68 | . 1 . . . . . . 1 . 2 11 8 45 Heat Transferred 26989 | 37 350 237 . . . 308 80 817 . 1376 6689 1891 15204 Parts Sabotaged 3 | . . . . . . . . . . . . . 3 Parts Stolen . | . . . . . . . . . . . . . . Parts Stripped . | . . . . . . . . . . . . . . Power Chain Reactions 1 | . . . . . . . . . . . . . 1 Missiles Intercepted . | . . . . . . . . . . . . . . Alert | -11 -10 -10 -10 -9 -8 -8 -8 -6 -5 -4 -4 -3 -2 ------- Run | Scr Mat Min Exi Min Mat Sto Rec Fac Fac Fac Ext Res Res Peak Influence 2612 | 15 48 128 . . . 87 126 1112 538 790 881 774 2612 Initial 952 | . . 18 . . . . 33 952 507 263 387 462 358 Average 567 | . 23 88 . . . 30 55 1012 520 231 699 608 1144 Maximum Alert Level 5 | . . . . . . . . 4 2 3 3 3 5 Low Security (%) 35 | 100 100 100 . 100 100 100 100 . . 35 . . . Level 1 5 | . . . . . . . . . . 60 1 . 2 Level 2 25 | . . . . . . . . . 100 3 49 90 26 Level 3 16 | . . . . . . . . 88 . 1 48 9 15 Level 4 11 | . . . . . . . . 11 . . . . 40 Level 5 . | . . . . . . . . . . . . . . High Security 4 | . . . . . . . . . . . . . 14 Max Security . | . . . . . . . . . . . . . . Squads Dispatched 50 | . . . . 1 . . . 4 . 4 1 9 31 Investigation . | . . . . . . . . . . . . . . Extermination 10 | . . . . . . . . 1 . 1 . 2 6 Reinforcement 9 | . . . . . . . . 1 . 3 . 2 3 Assault 28 | . . . . 1 . . . 2 . . 1 2 22 Garrison 3 | . . . . . . . . . . . . 3 . Intercept . | . . . . . . . . . . . . . . Construction Impeded 2 | . . . . . . . . . . . . . 2 Haulers Reinforced . | . . . . . . . . . . . . . . Stealth | -11 -10 -10 -10 -9 -8 -8 -8 -6 -5 -4 -4 -3 -2 --------- Run | Scr Mat Min Exi Min Mat Sto Rec Fac Fac Fac Ext Res Res Distress Signals 10 | . . . . . . . . 1 . 2 3 . 4 Communications Jammed . | . . . . . . . . . . . . . . Distress Signals . | . . . . . . . . . . . . . . Times Spotted 358 | 22 1 3 . 2 . 3 22 17 1 29 49 37 172 Peak Tracking Total 21 | 21 1 2 . 2 . 2 4 11 1 5 6 8 21 Tactical Retreats 26 | . . 1 . 1 . . . 3 . 5 10 . 6 Traps | -11 -10 -10 -10 -9 -8 -8 -8 -6 -5 -4 -4 -3 -2 ------- Run | Scr Mat Min Exi Min Mat Sto Rec Fac Fac Fac Ext Res Res Traps Triggered 12 | . 1 . . . . . . . . 2 2 . 7 Indirectly . | . . . . . . . . . . . . . . Trap Hack Attempts . | . . . . . . . . . . . . . . Triggered . | . . . . . . . . . . . . . . Disarmed . | . . . . . . . . . . . . . . Reprogrammed . | . . . . . . . . . . . . . . Reused . | . . . . . . . . . . . . . . Traps Extracted . | . . . . . . . . . . . . . . Installed . | . . . . . . . . . . . . . . Triggered . | . . . . . . . . . . . . . . Machines | -11 -10 -10 -10 -9 -8 -8 -8 -6 -5 -4 -4 -3 -2 ---------- Run | Scr Mat Min Exi Min Mat Sto Rec Fac Fac Fac Ext Res Res Machines Disabled 23 | . . . . . . 1 1 1 . 9 6 . 5 Max in Single Turn 5 | . . . . . . 1 . 1 . 5 1 . 1 Garrison Access 2 | . . . . . . . . . . . . 1 1 Machines Sabotaged . | . . . . . . . . . . . . . . Garrisons Compromised . | . . . . . . . . . . . . . . Overloaded Fab Kills . | . . . . . . . . . . . . . . Fab Network Shutdowns . | . . . . . . . . . . . . . . Hacking | -11 -10 -10 -10 -9 -8 -8 -8 -6 -5 -4 -4 -3 -2 --------- Run | Scr Mat Min Exi Min Mat Sto Rec Fac Fac Fac Ext Res Res Machines Accessed 23 | . 2 1 1 1 . 1 3 1 1 . 3 2 7 Terminals 17 | . 1 1 . . . 1 3 1 1 . 3 1 5 Fabricators . | . . . . . . . . . . . . . . Repair Stations . | . . . . . . . . . . . . . . Recycling Units 2 | . 1 . . . . . . . . . . . 1 Scanalyzers . | . . . . . . . . . . . . . . Garrison Access 2 | . . . . . . . . . . . . 1 1 Total Hacks 55 | . 10 2 1 1 . 4 11 1 2 . 7 3 13 Successful 25 | . 8 1 1 1 . 4 5 . 1 . 1 1 2 Failed 30 | . 2 1 . . . . 6 1 1 . 6 2 11 Catastrophic 11 | . . . . . . . 1 1 . . 2 1 6 Database Lockouts . | . . . . . . . . . . . . . . Manual 15 | . 2 3 1 . . 4 3 . . . . 1 1 Terminals 44 | . 7 2 . . . 4 11 1 2 . 7 1 9 Fabricators . | . . . . . . . . . . . . . . Repair Stations . | . . . . . . . . . . . . . . Recycling Units 5 | . 3 . . . . . . . . . . . 2 Scanalyzers . | . . . . . . . . . . . . . . Garrison Access 4 | . . . . . . . . . . . . 2 2 Terminal Hacks 18 | . 5 1 1 1 . 3 5 . 1 . 1 . . Record 4 | . 3 1 . . . . . . . . . . . Part Schematic 2 | . . . . . . . 2 . . . . . . Prototype ID Bank 1 | . . . . . . 1 . . . . . . . Open Door 2 | . . . . 1 . . . . . . 1 . . Level Access Points 1 | . . . . . . . 1 . . . . . . Branch Access Points 3 | . . . . . . 1 1 . 1 . . . . Emergency Access Points 1 | . 1 . . . . . . . . . . . . Unreport Threat 1 | . . . . . . . 1 . . . . . . Locate Traps 1 | . . . . . . 1 . . . . . . . Zone Layout 1 | . 1 . . . . . . . . . . . . EX-Prototype ID Bank 1 | . . . 1 . . . . . . . . . . Fabricator Hacks . | . . . . . . . . . . . . . . Repair Station Hacks . | . . . . . . . . . . . . . . Recycling Unit Hacks 2 | . 1 . . . . . . . . . . . 1 Retrieve Components 2 | . 1 . . . . . . . . . . . 1 Scanalyzer . | . . . . . . . . . . . . . . Garrison Access Hacks 2 | . . . . . . . . . . . . 1 1 Seal Access 2 | . . . . . . . . . . . . 1 1 Unauthorized Hacks 3 | . 2 . . . . 1 . . . . . . . Terminals 2 | . 1 . . . . 1 . . . . . . . Botnet 2 | . 1 . . . . 1 . . . . . . . Fabricators . | . . . . . . . . . . . . . . Repair Stations . | . . . . . . . . . . . . . . Recycling Units 1 | . 1 . . . . . . . . . . . . Monitor 1 | . 1 . . . . . . . . . . . . Scanalyzers . | . . . . . . . . . . . . . . Garrison Access . | . . . . . . . . . . . . . . Data Cores Recovered 1 | . . . . . . . . . . . 1 . . Used . | . . . . . . . . . . . . . . Hacking Detections 17 | . 1 1 . . . 1 3 1 1 . 2 1 6 Full Trace Events . | . . . . . . . . . . . . . . Feedback Events . | . . . . . . . . . . . . . . Feedback Blocked . | . . . . . . . . . . . . . . Robot Schematics Acquired . | . . . . . . . . . . . . . . Robots Built . | . . . . . . . . . . . . . . Matter . | . . . . . . . . . . . . . . Time . | . . . . . . . . . . . . . . Total Robot Build Rating . | . . . . . . . . . . . . . . Part Schematics Acquired 2 | . . . . . . . 2 . . . . . . Parts Built . | . . . . . . . . . . . . . . Matter . | . . . . . . . . . . . . . . Time . | . . . . . . . . . . . . . . Total Part Build Rating . | . . . . . . . . . . . . . . Parts Repaired . | . . . . . . . . . . . . . . Time . | . . . . . . . . . . . . . . Parts Recycled . | . . . . . . . . . . . . . . Recycled Matter . | . . . . . . . . . . . . . . Retrieved Matter . | . . . . . . . . . . . . . . Retrieved Components . | . . . . . . . . . . . . . . Parts Scanalyzed . | . . . . . . . . . . . . . . Part Schematics Acquired . | . . . . . . . . . . . . . . Parts Damaged . | . . . . . . . . . . . . . . Bothacking | -11 -10 -10 -10 -9 -8 -8 -8 -6 -5 -4 -4 -3 -2 ------------ Run | Scr Mat Min Exi Min Mat Sto Rec Fac Fac Fac Ext Res Res Used RIF Installer . | . . . . . . . . . . . . . . Robots Hacked . | . . . . . . . . . . . . . . Non-combat . | . . . . . . . . . . . . . . Combat . | . . . . . . . . . . . . . . Robot Hacks Applied . | . . . . . . . . . . . . . . Relay Couplers Released . | . . . . . . . . . . . . . . Robots Rewired 14 | . . . . . . . 7 . . . 7 . . Allies Hacked 1 | . . . . . . . . 1 . . . . . Hacks Repelled . | . . . . . . . . . . . . . . Allies | -11 -10 -10 -10 -9 -8 -8 -8 -6 -5 -4 -4 -3 -2 -------- Run | Scr Mat Min Exi Min Mat Sto Rec Fac Fac Fac Ext Res Res Total Allies 23 | . . 3 . 1 . . 7 3 . . 9 . . Largest Group 9 | . . 3 . 1 . . 7 9 . . 9 . . Highest-Rated Group 388 | . . 40 . 31 . . 79 164 . . 388 . . Highest-Rated Ally 46 | . . 16 . 31 . . 16 31 . . 46 . . Total Orders 3 | . . . . . . . . . . 2 . . 1 RETURN 3 | . . . . . . . . . . 2 . . 1 Ally Attacks 362 | . . 15 . 7 . . 52 58 . 21 72 . 137 Total Damage 8004 | . . 171 . 63 . . 589 1023 . 405 1825 . 3928 Kills 58 | . . . . 1 . . 17 6 . 4 11 . 19 Allies Corrupted . | . . . . . . . . . . . . . . Allies Melted . | . . . . . . . . . . . . . . Intel | -11 -10 -10 -10 -9 -8 -8 -8 -6 -5 -4 -4 -3 -2 ------- Run | Scr Mat Min Exi Min Mat Sto Rec Fac Fac Fac Ext Res Res Robot Analysis Total . | . . . . . . . . . . . . . . Derelict Logs Recovered 4 | . . 3 . 1 . . . . . . . . . Drone Launches 53 | . . . . . . . . . . 13 . . 40 Drone Recoveries 23 | . . . . . . . . . . 13 . . 10 Exploration | -11 -10 -10 -10 -9 -8 -8 -8 -6 -5 -4 -4 -3 -2 ------------- Run | Scr Mat Min Exi Min Mat Sto Rec Fac Fac Fac Ext Res Res Turns Passed 12411 | 1702 162 411 382 460 193 247 779 631 198 976 1631 1283 3356 Spaces Moved 6105 | 168 101 293 334 353 145 181 437 443 163 569 602 558 1758 Core 15 | 8 . . . . . . . . . 1 6 . . Treads 987 | 2 14 . . . . . . . . 32 333 472 134 Legs 1918 | . . . . . . . . . . 99 232 . 1587 Wheels 3185 | 158 87 293 334 353 145 181 437 443 163 437 31 86 37 Hover . | . . . . . . . . . . . . . . Flight . | . . . . . . . . . . . . . . Fastest Speed 50 | 50 100 110 110 110 120 120 120 110 120 90 120 140 96 Average Speed 128 | 98 118 110 110 113 120 120 120 121 120 119 174 161 124 Slowest Speed 800 | 160 180 110 110 120 120 120 120 140 120 700 800 220 210 Overloaded Moves . | . . . . . . . . . . . . . . Propulsion Burnouts . | . . . . . . . . . . . . . . Robots Hopped . | . . . . . . . . . . . . . . Cave-ins Triggered . | . . . . . . . . . . . . . . Exploration Rate (%) 37 | 25 24 57 64 74 10 25 86 15 4 16 66 13 40 Regions Visited 13 Branch Regions 6 Pre-discovered Areas 2 | . . 2 . . . . . . . . . . . Known Exits Taken 3 | . . . . . . 1 1 . . . 1 . . Unknown Exits Taken 10 | 1 1 1 1 1 1 . . 1 1 1 . 1 . Scrap Searched 2 | . . 1 . 1 . . . . . . . . . Spaces Dug 1 | . . . . . . . . . . . . . 1 Terrain Destroyed 638 | . . . . . . . . . . 103 238 51 246 Melee . | . . . . . . . . . . . . . . Projectile 68 | . . . . . . . . . . 13 7 4 44 AOE 570 | . . . . . . . . . . 90 231 47 202 Terrain Rammed . | . . . . . . . . . . . . . . Walls Destroyed . | . . . . . . . . . . . . . . Machines Disabled . | . . . . . . . . . . . . . . Actions | -11 -10 -10 -10 -9 -8 -8 -8 -6 -5 -4 -4 -3 -2 --------- Run | Scr Mat Min Exi Min Mat Sto Rec Fac Fac Fac Ext Res Res Total 9607 | 1700 125 368 351 412 163 202 689 511 165 769 951 773 2428 Wait 2282 | 1523 9 63 3 56 15 12 173 38 1 69 81 69 170 Move 6092 | 167 100 292 333 352 144 180 436 442 162 568 601 557 1758 Hop . | . . . . . . . . . . . . . . Pick Up 61 | 3 . 3 6 . 1 1 . 3 . 3 7 9 25 Fast Attach 214 | 6 4 2 . 1 2 2 1 6 1 26 44 28 91 Attach 45 | . 1 . . . 1 . . 1 1 6 4 5 26 Detach 18 | . . . . . . . . . . 5 5 2 6 Swap 45 | . . . 2 1 . 1 1 3 . 1 2 4 30 Drop 120 | . 1 1 7 2 . 2 2 8 . 5 11 14 67 Fire 535 | 1 10 7 . . . 4 1 10 . 86 137 62 217 Melee 33 | . . . . . . . . . . . 10 23 . Ram . | . . . . . . . . . . . . . . Kick . | . . . . . . . . . . . . . . Crush . | . . . . . . . . . . . . . . Escape Stasis 48 | . . . . . . . . . . . 10 . 38 Rewire 114 | . . . . . . . 75 . . . 39 . . Trap . | . . . . . . . . . . . . . . Miscellaneous . | . . . . . . . . . . . . . . Route ------- -11/Scrapyard -10/Materials -10/Mines (discovered 3 exits: [*Mat x2] / *Exi) -10/Exiles -9/Mines -8/Materials -8/Storage -8/Recycling -6/Factory -5/Factory (discovered 3 exits: [*Fac] / Upp x2) -4/Factory -4/Extension (discovered 2 exits: *Res / [*Cet]) -3/Research -2/Research History --------- Turn | Location | Event 6 | -11/Scrapyard | Discovered new exit (range 15) 1658 | -11/Scrapyard | Assembled infested the area 1703 | -11/Scrapyard | Entered Materials 1737 | -10/Materials | Build established: Mutant 1744 | -10/Materials | Discovered new exit (range 12) 1865 | -10/Materials | Entered Mines 1869 | -10/Mines | Met a Derelict bent on vengeance 1896 | -10/Mines | Learned location of Storage (-8) 1932 | -10/Mines | Learned Materials terminal intel 1958 | -10/Mines | Discovered new exit (range 10) 2047 | -10/Mines | A weapon hastily lodged in a ceiling crevice suddenly fell to the ground 2056 | -10/Mines | Discovered new exit (range 7) 2144 | -10/Mines | Assisted by bots powering up and referring to "LRC-V3" 2271 | -10/Mines | Deemed a non-threat by the Exiles lab entrance 2272 | -10/Mines | Discovered new exit (range 5) 2276 | -10/Mines | Entered Exiles 2307 | -10/Exiles | Met 8R-AWN 2325 | -10/Exiles | Met EX-HEX 2361 | -10/Exiles | Met EX-BIN 2373 | -10/Exiles | Aligned with FarCom system 2374 | -10/Exiles | Given EX-Vault access code 2403 | -10/Exiles | Opened EX-Vault 2413 | -10/Exiles | Found Firepult 2436 | -10/Exiles | Warned to stay clear of 0b10 Research branches 2470 | -10/Exiles | Met EX-DEC 2475 | -10/Exiles | Build established: Scavenger-Mutant 2536 | -10/Exiles | Found Army-in-a-Box 2541 | -10/Exiles | Found Superbattery 2649 | -10/Exiles | Discovered new exit (range 10) 2658 | -10/Exiles | Stole three prototypes: Superbattery, Army-in-a-Box, Firepult 2658 | -10/Exiles | Entered Mines 2659 | -9/Mines | Met a Derelict testing a Signal Generator 2661 | -9/Mines | Assembled infested the area 2680 | -9/Mines | Core integrity fell below 50% 2958 | -9/Mines | Met a Derelict who couldn't figure out how to use a Trap Extractor 3045 | -9/Mines | Learned Materials stockpile data 3110 | -9/Mines | Discovered new exit (range 8) 3118 | -9/Mines | Entered Materials 3118 | -8/Materials | Evolved 4 slots: Utility x3, Weapon x1 3120 | -8/Materials | Loaded intel: 12 terminal locations 3135 | -8/Materials | Discovered new exit (range 9) 3311 | -8/Materials | Entered Storage 3423 | -8/Storage | Identified exit to Recycling 3553 | -8/Storage | Used back door to open Recycling access 3558 | -8/Storage | Entered Recycling 3631 | -8/Recycling | Build established: Tank 3648 | -8/Recycling | Spotter reported a threat 3650 | -8/Recycling | Spotter reported a threat 3673 | -8/Recycling | Spotter reported a threat 3696 | -8/Recycling | Spotter reported a threat 3701 | -8/Recycling | Spotter reported a threat 3703 | -8/Recycling | Spotter reported a threat 3765 | -8/Recycling | Spotter reported a threat 3771 | -8/Recycling | Spotter reported a threat 3780 | -8/Recycling | Spotter reported a threat 3788 | -8/Recycling | Spotter reported a threat 3795 | -8/Recycling | Identified exit to Factory 3824 | -8/Recycling | Spotter reported a threat 3837 | -8/Recycling | Spotter reported a threat 3841 | -8/Recycling | Spotter reported a threat 3843 | -8/Recycling | Spotter reported a threat 3871 | -8/Recycling | Spotter reported a threat 3877 | -8/Recycling | Spotter reported a threat 3955 | -8/Recycling | Spotter reported a threat 3957 | -8/Recycling | Spotter reported a threat 3965 | -8/Recycling | Spotter reported a threat 3983 | -8/Recycling | Spotter reported a threat 4029 | -8/Recycling | Spotter reported a threat 4065 | -8/Recycling | Spotter reported a threat 4065 | -8/Recycling | Spotter reported a threat 4103 | -8/Recycling | Spotter reported a threat 4110 | -8/Recycling | Spotter reported a threat 4118 | -8/Recycling | Spotter reported a threat 4144 | -8/Recycling | Build established: Commander-Tank 4147 | -8/Recycling | Spotter reported a threat 4148 | -8/Recycling | Spotter reported a threat 4163 | -8/Recycling | Spotter reported a threat 4191 | -8/Recycling | Spotter reported a threat 4200 | -8/Recycling | Spotter reported a threat 4234 | -8/Recycling | Spotter reported a threat 4234 | -8/Recycling | Spotter reported a threat 4244 | -8/Recycling | Spotter reported a threat 4287 | -8/Recycling | Spotter reported a threat 4287 | -8/Recycling | Spotter reported a threat 4336 | -8/Recycling | Spotter reported a threat 4337 | -8/Recycling | Entered Factory 4337 | -6/Factory | Accompanied by 6 allies 4337 | -6/Factory | Evolved 4 slots: Propulsion x1, Utility x2, Weapon x1 4339 | -6/Factory | FarCom data flow suspended 4649 | -6/Factory | P-60 Hacker assimilated allied LW-605(g) 4687 | -6/Factory | First assault squad dispatched 4914 | -6/Factory | Discovered new exit (range 8) 4968 | -6/Factory | Entered another Factory area 4968 | -5/Factory | Evolved 2 slots: Power x1, Utility x1 5008 | -5/Factory | Discovered new exit (range 13) 5052 | -5/Factory | Identified exit to Upper Caves 5166 | -5/Factory | Entered another Factory area 5166 | -4/Factory | Evolved 2 slots: Propulsion x1, Utility x1 5247 | -4/Factory | Build established: Tank 5490 | -4/Factory | Lost 13 parts (1p3n5u4w) 5730 | -4/Factory | Lost 12 parts (2p4n2u4w) 6125 | -4/Factory | Discovered new exit (range 15) 6142 | -4/Factory | Entered Extension 6234 | -4/Extension | Build established: Scavenger-Mutant 6288 | -4/Extension | Lost 4 parts (1p2n1w) 6407 | -4/Extension | Lost 4 parts (1p2n1w) 6416 | -4/Extension | Core integrity fell below 50% 6442 | -4/Extension | Disrupted transfer network 6471 | -4/Extension | Lost 5 parts (1p1u3w) 6854 | -4/Extension | Rescued a captive Derelict 6854 | -4/Extension | Rescued a captive Derelict 6929 | -4/Extension | Build established: Commander-Mutant 6993 | -4/Extension | Spotted B-86 Titan 7053 | -4/Extension | Destroyed B-86 Titan 7072 | -4/Extension | Spotted B-86 Titan 7179 | -4/Extension | Destroyed B-86 Titan 7190 | -4/Extension | Found Hvy. Reflective Plating 7202 | -4/Extension | Lost 5 parts (1p2n2u) 7391 | -4/Extension | Build established: Scavenger-Mutant 7392 | -4/Extension | First assault squad dispatched 7540 | -4/Extension | Lost 4 parts (1n1u2w) 7733 | -4/Extension | Discovered new exit (range 16) 7734 | -4/Extension | Discovered new exit (range 15) 7737 | -4/Extension | Disrupted transfer network 7741 | -4/Extension | Core integrity fell below 20% 7771 | -4/Extension | Identified exit to Research 7773 | -4/Extension | Entered Research 7773 | -3/Research | Evolved 2 slots: Utility x2 7972 | -3/Research | Lost 3 parts (3u) 8273 | -3/Research | First assault squad dispatched 8353 | -3/Research | Garrison activated, responded to threat 8452 | -3/Research | Lost 4 parts (1u3w) 8512 | -3/Research | Lost 4 parts (1p2n1w) 8732 | -3/Research | Build established: Scavenger-Gunner 8960 | -3/Research | System corruption reached 10% 9039 | -3/Research | Discovered new exit (range 12) 9056 | -3/Research | Entered another Research area 9056 | -2/Research | Evolved 2 slots: Utility x2 9170 | -2/Research | Lost 4 parts (1p2n1w) 9306 | -2/Research | First assault squad dispatched 9617 | -2/Research | Found Prototype Launcher 9730 | -2/Research | Lost 3 parts (2p1w) 9822 | -2/Research | Lost 4 parts (2n1u1w) 9890 | -2/Research | Lost 3 parts (1p2u) 9946 | -2/Research | Lost 7 parts (1n3u3w) 9993 | -2/Research | Lost 3 parts (1n2w) 10066 | -2/Research | Found Prototype Device 10066 | -2/Research | Identified Adv. Kinecellerator 10185 | -2/Research | Identified Tactical Quantum Warhead 10277 | -2/Research | System corruption reached 10% 10301 | -2/Research | Destroyed 7 combat bots 10474 | -2/Research | Spotted B-90 Cyclops 10536 | -2/Research | Lost 3 parts (1n2u) 10545 | -2/Research | Allies destroyed B-90 Cyclops 10735 | -2/Research | Lost 3 parts (2u1w) 11272 | -2/Research | Lost 5 parts (1p1n2u1w) 11439 | -2/Research | Lost 3 parts (1n2w) 11667 | -2/Research | Spotted B-90 Cyclops 11923 | -2/Research | High security lockdown imminent 11978 | -2/Research | Destroyed 8 combat bots 12003 | -2/Research | High security lockdown engaged 12196 | -2/Research | Destroyed 10 combat bots 12212 | -2/Research | Lost 8 parts (2p1u5w) 12241 | -2/Research | Spotted Striker 12242 | -2/Research | Spotted Striker 12268 | -2/Research | Core integrity fell below 50% 12270 | -2/Research | Destroyed Striker 12272 | -2/Research | Destroyed Striker 12275 | -2/Research | Lost 4 parts (2n2u) 12284 | -2/Research | Scanned by Researcher 12285 | -2/Research | Destroyed Investigator 12311 | -2/Research | Destroyed 15 combat bots 12321 | -2/Research | Found Prototype Launcher 12321 | -2/Research | Identified Containment Facilitator 12374 | -2/Research | Spotted Investigator 12383 | -2/Research | Spotted Executioner 12387 | -2/Research | Destroyed Executioner 12394 | -2/Research | System corruption reached 30% 12398 | -2/Research | Core integrity fell below 20% 12412 | -2/Research | Destroyed by G-73 Enforcer with Heavy Laser Last Messages --------------- 12403_ Held in stasis. 12403_ Investigator is analyzing... 12404_ Acquired 21 matter. 12404_ Dropped Lrg. Storage Unit. 12405_ Stasis bubble strength at 184. 12406_ Stasis bubble strength at 178. 12406_ Penetrated by Slug. 12406_ Slug penetrates Wall. 12406_ P-80 Master destroyed. 12406_ Held in stasis. 12406_ Investigator is analyzing... 12407_ Stasis bubble strength at 172. 12408_ Stasis bubble strength at 166. 12409_ Stasis bubble strength at 160. 12409_ Penetrated by Slug. 12409_ Slug penetrates Earth. 12409_ Held in stasis. 12410_ Stasis bubble strength at 154. 12411_ Stasis bubble strength at 148. 12412_ Stasis bubble strength at 142. Map ----- +----------------------------------------------------+ | ??#]#?# ##+#########+###?????????# #????# | | ###!###="" #?????????# #????# | | !! !!*! T" ########### ####?# | | #######! #?# | | ??????# #######+#### ##### ######## #?# ## | | ??????###/####?# #?# !#???# #??????# ### #? | | #####?# * #?# #?#=%=#####+####???# #? | | #?# #?# #?#!=!# #???####### #? | | #?# #?# #?# #* #?????????# #? | | #?# #?# = #?# # """ #?????????# #? | | #?# #?# #?# # """ #????######+## | | #?# #?# #?# + "S #????# | | #?########?# #?# # "" #????# | | #??????????# #?# # " #????# | | == #??????????# #?#^^g# #????# """ | | == #??????????# #?# # #????# """ | | == #??????????# ### ;"########????# """ | | #??????????####### # ;#????????????# | | #?????############## #?????????????# | | #####?????# *# #??##?????????# | | "?????????# ! ! # #?# #?#############"### | | "?????????# = ## #??# #?? | | "?????????# | # /# #???# #?? | | " #?????# =#%!];#????# [ #?? | | #?##################%/=##????# #?? | | #? ! #????????#!@[!##???# #?? | | ! #?? #????????#E|%=/#???# ! #?? | | #?? """ #????????#=!g###???#######+######### | | # """" #??????###g!c###??????# | | # """" ######## %=!*% ######## | | # """ # !=%% | | = # # =*[g #######" | | ##### + #?????## | | #???# # #??????######## | | #???# "" # #????????????#" | | #???# "" ####+### #????????????## " | | #???# T" #? ######;##?????????????# | | #???# !! "" ## #?????##??????????????# | | #???# ! "" ## #?????????????????????# | | #???# ## #?????????????????????# = | | #???# ?? ?# #???????????????????######+"# | | #????????#####?# #???????????????????# " ==%% | | #??????????????# *#???????????????????### %%! | | ???????????????# #?????????????????????# " | | ???????????????# #?????????????????????# " | | ???????????????# #????????????????????#" " | | ???????????????# #????????????????????## " | | ???????????????# #?????????????????????# " | | ???????????????#######?????????????????????# | | ???????????????????????????????????????????#! | +----------------------------------------------------+ Best States ------------- Heat Dissipation 182 Coolant Potential 400 Energy Generation 53 Energy Capacity 980 Matter Stores 827 Matter Capacity 850 Sight Range 16 Robot Scan Range 16 Terrain Scan Density 10 ECM Strength 3 Armor Coverage 1275 Resistance: TH 25 Weapon Shielding 90 Reclamation Efficiency 25 Weapon Cycling 25 Phase Shifting 15 Evasion (%) 55 Targeting Accuracy 16 Melee Accuracy 5 Target Analysis 8 Core Analysis 10 Armor Integrity Analysis 66 Recoil Reduction 4 Energy Filtering 50 Kinecelleration 50 Offensive Hacking 14 Item Schematics ----------------- Mic. Nuclear Core | -8/Recycling | Hacked Adv. Heat Sink | -8/Recycling | Hacked Robot Schematics ------------------ None Fabricated ------------ Nothing Alien Tech Used ----------------- None Achievements -------------- Curiosity Killed The Cat Challenges ------------ None Game ------ Seed ArmoredShrapnelInterpreter Manual? 0 Play Time 01:51:33 Cumulative 170.7 hours Start 2020.11.06 @ 10:42:06 End 2020.11.07 @ 20:24:40 Sessions 3 Manual Loads 0 Difficulty Rogue Special Mode Halloween2020/ForbiddenLore Game No. 217 Rogue 174 Adventurer 3 Explorer 40 Win Type - Total 4 Types 3/1/0/0/0/0/0/0/0 Lore% 53 Gallery% 77 Achievement% 58 Wizard Run 0 Options --------- ASCII 0 Keyboard 0 Movement Numpad Keybinds 0 Fullscreen 2 Font 18/Smallcaps Map View 76x50 Tactical HUD 1 Map Filters NONE Filters NONE Steam 1 RUN: 9325a03a-09ab-4d45-8ae4-bdc0da3e3eb6